Cogmind - Beta 12 X1 @@@ ROGUE MODE // 2022.06.30 @ 11:26:47 Player: btmk16 Result: Self-destructed Performance ------------- Evolutions (3) 1500 Regions Visited (4) 800 Robots Destroyed (29) 145 Value Destroyed (665) 665 Prototype IDs (0) 0 Alien Tech Used (0) 0 Bonus (0) 0 TOTAL SCORE: 3110 Bonus ------- None Cogmind --------- Core Integrity 544/700 Matter 300/300 Energy 45/100 System Corruption 0% Temperature Warm (138) Movement Core (250) Ox4 Location -7/Factory Parts ------- > --- POWER (1) -------- (None) > --- PROPULSION (4) --- Aluminum Leg Aluminum Leg > --- UTILITY (6) ------ Medium Storage Unit Hacking Suite Hacking Suite > --- WEAPON (2) ------- Gatling Laser > --- INVENTORY (10) --- Cesium-ion Thruster Cesium-ion Thruster Hacking Suite Hacking Suite System Shield Heavy Particle Cannon Flak Gun Improved Light Cannon Rocket Launcher Heavy Mace Peak State ------------ > --- POWER ------------ Light Ion Engine > --- PROPULSION ------- VTOL Module VTOL Module VTOL Module VTOL Module > --- UTILITY ---------- Medium Storage Unit Weight Redist. System Hacking Suite Hacking Suite > --- WEAPON ----------- Heavy Particle Cannon Rocket Launcher > --- INVENTORY -------- Cesium-ion Thruster Cesium-ion Thruster Cesium-ion Thruster Cesium-ion Thruster Hacking Suite Hacking Suite Small Laser Rocket Launcher [Rating: 25] Favorites ----------- Power Light Ion Engine Engine Light Ion Engine Propulsion Cesium-ion Thruster Leg Aluminum Leg Wheel Wheel Flight Unit Cesium-ion Thruster Utility Hacking Suite Device Weight Redist. System Storage Medium Storage Unit Hackware Hacking Suite Weapon Light Assault Rifle Energy Gun Small Laser Energy Cannon Heavy Particle Cannon Ballistic Gun Light Assault Rifle Ballistic Cannon Improved Light Cannon Launcher Rocket Launcher Impact Weapon Heavy Mace Build | -11 -10 -9 -8 -7 ------- Run | Scr Mat Mat Mat Fac Slots Evolved 6 | . . 2 2 2 Power . | . . . . . Propulsion 2 | . . 1 1 . Utility 4 | . . 1 1 2 Weapon . | . . . . . Parts Attached 49 | . 8 14 15 12 Power 3 | . 2 . . 1 Engine 3 | . 2 . . 1 Core . | . . . . . Reactor . | . . . . . Propulsion 21 | . 2 10 3 6 Treads . | . . . . . Leg 8 | . 2 4 . 2 Wheel 2 | . . . . 2 Hover . | . . . . . Flight 11 | . . 6 3 2 Utility 4 | . 2 1 1 . Device 1 | . 1 . . . Storage 1 | . 1 . . . Processor . | . . . . . Hackware 2 | . . 1 1 . Protection . | . . . . . Artifact . | . . . . . Weapon 21 | . 2 3 11 5 Energy Gun 7 | . 1 1 2 3 Energy Cannon 5 | . . . 5 . Ballistic Gun 3 | . 1 1 . 1 Ballistic Cannon 1 | . . . 1 . Launcher 4 | . . 1 3 . Special Weapon . | . . . . . Impact Weapon 1 | . . . . 1 Slashing Weapon . | . . . . . Piercing Weapon . | . . . . . Special Melee Weapon . | . . . . . Unidentified Prototypes . | . . . . . Parts Lost 15 | . 3 1 4 7 Power 3 | . 1 . 1 1 Propulsion 7 | . 1 . 2 4 Utility 1 | . . . . 1 Weapon 4 | . 1 1 1 1 Highest Loss Streak 5 | . 2 1 4 5 To Critical Strikes . | . . . . . Average Slot Usage (%) 72 | . 90 91 85 51 Engine 6 | . 13 11 7 . Leg 9 | . 27 9 . 1 Flight 13 | . . 22 31 12 Device 7 | . 6 11 9 6 Storage 9 | . 14 11 9 7 Hackware 10 | . . 6 18 15 Energy Gun 4 | . 4 8 2 3 Ballistic Gun 7 | . 22 8 . . Naked Turns . | . . . . . Heaviest Build 20 | 10 15 18 19 20 Greatest Support 36 | 20 26 36 22 20 Greatest Overweight (x) 4 | . . . 1 4 Average Overweight (x) . | . . . . . Largest Inventory Capacity 10 | . 10 10 10 10 Average Capacity 9 | . 8 10 10 10 Most Carried 10 | . 10 10 10 10 Average Carried 8 | . 7 9 9 9 Final Capacity 10 | 8 10 10 10 10 Final Carried 10 | 6 10 10 10 10 Class Distribution -------------------- 46% | Hacker-Sprinter 28% | Mutant 14% | Scavenger-Mutant 11% | Hacker-Mutant Dominant Class ---------------- Mutant | -10/Materials Mutant | -9/Materials Hacker-Sprinter | -8/Materials Hacker-Sprinter | -7/Factory Resources | -11 -10 -9 -8 -7 ----------- Run | Scr Mat Mat Mat Fac Matter Collected 790 | 200 156 . 44 390 Remotely . | . . . . . Salvage Created 960 | . 471 21 56 412 Parts 55 | . 36 2 6 11 Haulers Intercepted 2 | . 2 . . . Recyclers Shooed . | . . . . . Parts Field Recycled . | . . . . . Retrieved Matter . | . . . . . Parts Self-Destructed . | . . . . . Prevented . | . . . . . Kills | -11 -10 -9 -8 -7 ------- Run | Scr Mat Mat Mat Fac Combat Hostiles Destroyed 23 | . 11 . 6 6 Melee 1 | . . . . 1 Guns 15 | . 11 . . 4 Cannons 1 | . . . 1 . AOE 5 | . . . 5 . Classes Destroyed 5 | . 3 1 . 1 Worker 2 | . . 1 . 1 Hauler 2 | . 2 . . . Recycler 2 | . . . . 2 Swarmer 11 | . 3 . 6 2 Grunt 12 | . 8 . . 4 Best Kill Streak 4 | . 4 1 4 3 Combat Bots Only 4 | . 4 . 4 2 Max Kills in Single Turn 3 | . 1 1 3 1 Gunslinging . | . . . . . Exploded 3 | . . . 3 . Melee 1 | . . . . 1 Uniques/NPCs Destroyed . | . . . . . Combat | -11 -10 -9 -8 -7 -------- Run | Scr Mat Mat Mat Fac Damage Taken 1639 | . 528 141 465 505 Core 485 | . 106 62 161 156 Absorbed by Shields . | . . . . . Core Remaining (%) 77 | 100 57 84 70 . Volleys Fired 93 | . 54 1 17 21 Largest 2 | . 2 1 2 2 Hottest 145 | . 60 33 115 145 Shots Fired 165 | . 107 1 25 32 Gun 141 | . 107 . 2 32 Cannon 20 | . . . 20 . Launcher 4 | . . 1 3 . Special . | . . . . . Kinetic 103 | . 96 . 7 . Thermal 58 | . 11 . 15 32 Explosive 4 | . . 1 3 . Electromagnetic . | . . . . . Robot Hit Streak 10 | . 9 . 3 10 Robot Miss Streak 5 | . 4 . 4 5 Penetration Max . | . . . . . Secondary Targets 1 | . 1 . . . Max Gunslinging Chain 1 | . 1 . . . Shots Hit Robots 101 | . 64 . 6 31 Core Hits 51 | . 30 2 6 13 Critical Kills . | . . . . . Critical Parts Destroyed . | . . . . . Critical Strikes . | . . . . . Melee Attacks 9 | . . . . 9 Impact 9 | . . . . 9 Slashing . | . . . . . Piercing . | . . . . . Sneak Attacks 2 | . . . . 2 Combat Hostiles . | . . . . . Follow-up Attacks . | . . . . . Damage Inflicted 1884 | . 530 18 541 795 Guns 897 | . 529 . . 368 Cannons 117 | . . . 117 . Explosions 442 | . . 18 424 . Melee 424 | . . . . 424 Ramming 4 | . 1 . . 3 Kinetic 514 | . 472 . 42 . Thermal 500 | . 57 . 75 368 Explosive 442 | . . 18 424 . Electromagnetic . | . . . . . Impact 424 | . . . . 424 Slashing . | . . . . . Piercing . | . . . . . Highest Corruption . | . . . . . Average Corruption . | . . . . . Corruption Purged . | . . . . . Corruption Blocked . | . . . . . Overload Shots . | . . . . . Overflow Damage 237 | . . 47 30 160 Projectiles . | . . . . . Explosions 77 | . . 47 30 . Melee 160 | . . . . 160 Knockbacks 2 | . . . 1 1 Impact 1 | . . . . 1 Kinetic 1 | . . . 1 . Secondary . | . . . . . Self-Inflicted Damage 199 | . . 98 100 1 Shots 4 | . . 1 3 . Rammed 2 | . . . . 2 Targets Rammed 3 | . 1 . . 2 Kicked 1 | . 1 . . . Crushed . | . . . . . Highest Temperature 164 | . 76 1 164 142 Average Temperature 41 | . 20 1 58 48 Received Heat Transfer 549 | . 261 18 126 144 Siege Activations . | . . . . . Robots Corrupted . | . . . . . Combat Hostiles . | . . . . . Parts Fried 1 | . . . . 1 Impact Corruptions 6 | . . . . 6 Robots Melted . | . . . . . Combat Hostiles . | . . . . . Parts Melted 3 | . . . 1 2 Heat Transferred 1129 | . 125 . 111 893 Parts Sabotaged . | . . . . . Parts Stolen . | . . . . . Parts Stripped . | . . . . . Power Chain Reactions . | . . . . . Missiles Intercepted . | . . . . . Alert | -11 -10 -9 -8 -7 ------- Run | Scr Mat Mat Mat Fac Peak Influence 378 | . 319 253 378 119 Initial 119 | . . 50 106 119 Average 130 | . 185 87 187 83 Maximum Alert Level 1 | . 1 1 1 . Low Security (%) 77 | . 48 89 59 100 Level 1 22 | . 51 10 40 . Level 2 . | . . . . . Level 3 . | . . . . . Level 4 . | . . . . . Level 5 . | . . . . . High Security . | . . . . . Max Security . | . . . . . Squads Dispatched 7 | . 2 . 3 2 Investigation . | . . . . . Extermination . | . . . . . Reinforcement 7 | . 2 . 3 2 Assault . | . . . . . Garrison . | . . . . . Intercept . | . . . . . Searches Triggered . | . . . . . Construction Impeded 1 | . . . 1 . Haulers Reinforced . | . . . . . Active Scanning Responses . | . . . . . Cargo Convoy Interrupts . | . . . . . Stealth | -11 -10 -9 -8 -7 --------- Run | Scr Mat Mat Mat Fac Distress Signals 5 | . . . 4 1 Communications Jammed . | . . . . . Distress Signals . | . . . . . Times Spotted 61 | . 18 4 29 10 Peak Tracking Total 13 | . 5 4 13 2 Tactical Retreats 7 | . 2 . 5 . Traps | -11 -10 -9 -8 -7 ------- Run | Scr Mat Mat Mat Fac Traps Triggered 2 | . . 2 . . Indirectly . | . . . . . Trap Hack Attempts . | . . . . . Triggered . | . . . . . Disarmed . | . . . . . Reprogrammed . | . . . . . Reused . | . . . . . Traps Extracted . | . . . . . Installed . | . . . . . Triggered . | . . . . . Machines | -11 -10 -9 -8 -7 ---------- Run | Scr Mat Mat Mat Fac Machines Disabled 3 | . . 1 2 . Max in Single Turn 1 | . . 1 1 . Machines Sabotaged . | . . . . . Garrisons Compromised . | . . . . . Overloaded Fab Kills . | . . . . . Hacking | -11 -10 -9 -8 -7 --------- Run | Scr Mat Mat Mat Fac Machines Accessed 7 | . . 3 3 1 Terminals 7 | . . 3 3 1 Fabricators . | . . . . . Repair Stations . | . . . . . Recycling Units . | . . . . . Scanalyzers . | . . . . . Garrison Access . | . . . . . Total Hacks 18 | . . 7 9 2 Successful 5 | . . 2 3 . Failed 13 | . . 5 6 2 Catastrophic 1 | . . 1 . . Database Lockouts . | . . . . . Manual 7 | . . 5 . 2 Terminals 18 | . . 7 9 2 Fabricators . | . . . . . Repair Stations . | . . . . . Recycling Units . | . . . . . Scanalyzers . | . . . . . Garrison Access . | . . . . . Terminal Hacks 5 | . . 2 3 . Robot Analysis 1 | . . 1 . . Level Access Points 1 | . . 1 . . Alert Level 1 | . . . 1 . Unreport Threat 2 | . . . 2 . Fabricator Hacks . | . . . . . Repair Station Hacks . | . . . . . Recycling Unit Hacks . | . . . . . Scanalyzer . | . . . . . Garrison Access Hacks . | . . . . . Unauthorized Hacks . | . . . . . Terminals . | . . . . . Fabricators . | . . . . . Repair Stations . | . . . . . Recycling Units . | . . . . . Scanalyzers . | . . . . . Garrison Access . | . . . . . Data Cores Recovered . | . . . . . Used . | . . . . . Hacking Detections 7 | . . 3 3 1 Full Trace Events . | . . . . . Feedback Events . | . . . . . Feedback Blocked . | . . . . . Robot Schematics Acquired . | . . . . . Robots Built . | . . . . . Authchips . | . . . . . Time . | . . . . . Total Robot Build Rating . | . . . . . Part Schematics Acquired . | . . . . . Parts Built . | . . . . . Authchips . | . . . . . Time . | . . . . . Total Part Build Rating . | . . . . . Parts Repaired . | . . . . . Time . | . . . . . Parts Recycled . | . . . . . Recycled Matter . | . . . . . Retrieved Matter . | . . . . . Retrieved Components . | . . . . . Parts Scanalyzed . | . . . . . Part Schematics Acquired . | . . . . . Parts Damaged . | . . . . . Bothacking | -11 -10 -9 -8 -7 ------------ Run | Scr Mat Mat Mat Fac Used RIF Installer . | . . . . . Robots Hacked . | . . . . . Non-combat . | . . . . . Combat . | . . . . . Robot Hacks Applied . | . . . . . Relay Couplers Released . | . . . . . Fabnet Peak Effective % . | . . . . . Robots Rewired . | . . . . . Allies Hacked . | . . . . . Hacks Repelled . | . . . . . Allies | -11 -10 -9 -8 -7 -------- Run | Scr Mat Mat Mat Fac Total Allies . | . . . . . Largest Group . | . . . . . Highest-Rated Group . | . . . . . Highest-Rated Ally . | . . . . . Total Orders . | . . . . . Ally Attacks . | . . . . . Total Damage . | . . . . . Kills . | . . . . . Allies Corrupted . | . . . . . Allies Melted . | . . . . . Intel | -11 -10 -9 -8 -7 ------- Run | Scr Mat Mat Mat Fac Robot Analysis Total 1 | . . 1 . . Derelict Logs Recovered . | . . . . . Drone Launches . | . . . . . Drone Recoveries . | . . . . . Exploration | -11 -10 -9 -8 -7 ------------- Run | Scr Mat Mat Mat Fac Turns Passed 1672 | . 459 167 296 750 Spaces Moved 1321 | 1 210 307 483 320 Core 12 | . . . . 12 Treads . | . . . . . Legs 245 | 1 210 34 . . Wheels 78 | . . . . 78 Hover . | . . . . . Flight 986 | . . 273 483 230 Fastest Speed 26 | 120 120 29 26 32 Average Speed 53 | 120 120 43 31 51 Slowest Speed 250 | 120 120 120 115 250 Overloaded Moves . | . . . . . Propulsion Burnouts . | . . . . . Robots Hopped 11 | . . 4 6 1 Cave-ins Triggered . | . . . . . Exploration Rate (%) 21 | 2 28 26 46 4 Regions Visited 4 Branch Regions . Pre-discovered Areas . | . . . . . Known Exits Taken 1 | . . 1 . . Unknown Exits Taken 3 | 1 1 . 1 . Scrap Searched . | . . . . . Spaces Dug 25 | . . 7 18 . Terrain Destroyed 88 | . . 34 54 . Melee . | . . . . . Projectile 9 | . . . 9 . AOE 79 | . . 34 45 . Terrain Rammed . | . . . . . Walls Destroyed . | . . . . . Machines Disabled . | . . . . . Actions | -11 -10 -9 -8 -7 --------- Run | Scr Mat Mat Mat Fac Total 2117 | . 335 336 594 852 Wait 594 | . 39 1 74 480 Move 1295 | . 209 298 470 318 Hop 11 | . . 4 6 1 Pick Up 27 | . 13 8 4 2 Fast Attach 17 | . 2 6 . 9 Attach 15 | . 2 1 9 3 Detach 9 | . . . 6 3 Swap 17 | . 4 7 6 . Drop 27 | . 11 10 2 4 Fire 93 | . 54 1 17 21 Melee 9 | . . . . 9 Ram 2 | . . . . 2 Kick 1 | . 1 . . . Crush . | . . . . . Escape Stasis . | . . . . . Rewire . | . . . . . Trap . | . . . . . Miscellaneous . | . . . . . Route ------- -11/Scrapyard -10/Materials -9/Materials (discovered 3 exits: *Mat x3) -8/Materials -7/Factory History --------- Turn | Location | Event 1 | -11/Scrapyard | Discovered new exit (range 0) 1 | -11/Scrapyard | Entered Materials 248 | -10/Materials | Discovered new exit (range 4) 342 | -10/Materials | Build established: Mutant 460 | -10/Materials | Entered another Materials area 460 | -9/Materials | Evolved 2 slots: Propulsion x1, Utility x1 595 | -9/Materials | Identified exit to Materials 627 | -9/Materials | Entered another Materials area 627 | -8/Materials | Evolved 2 slots: Propulsion x1, Utility x1 898 | -8/Materials | Lost 4 parts (1p2n1w) 914 | -8/Materials | Discovered new exit (range 15) 923 | -8/Materials | Entered Factory 923 | -7/Factory | Evolved 2 slots: Utility x2 1129 | -7/Factory | Build established: Hacker-Sprinter 1673 | -7/Factory | Self-destructed Last Messages --------------- 01590_ Acquired Aluminum Leg. 01595_ Dropped Corrupted Com. Wheel. 01596_ Acquired Hvy. Mace. 01616_ Dropped Sml. Laser. 01616_ Acquired Gatling Laser. 01638_ O-24 Administrator sends out distress signal. 01638_ O-24 Administrator: "IFF HANDSHAKE FAILED. SECURING TERMINAL." 01641_ O-24 Administrator uses terminal to summon reinforcements. 01641_ ALERT: Hostiles spotted, dispatching reinforcements to Terminal F003. 01641_ O-24 Administrator locks terminal. 01651_ S-27 Virus destroyed. 01654_ Acquired 23 matter. 01661_ Wheel destroyed. 01662_ Lgt. Ion Engine destroyed. 01662_ S-27 Virus destroyed. 01664_ Weight Redist. System destroyed. 01670_ Penetrated by Slug. 01670_ Particle Gun destroyed. 01671_ Wheel destroyed. Map ----- +----------------------------------------------------+ | ?????????????????????????????????????????????????? | | ?????????????????????????????????????????????????? | | ?????????????????????????????????????????????????? | | ?????????????????????????????????????????????????? | | ?????????????????????????????????????????????????? | | ?????????????????????????????????????????????????? | | ?????????????????????????????????????????????????? | | ?????????????????????????????????????????????????? | | ?????????????????????????????????????????????????? | | ?????????????????????????????????????????????????? | | ??????????????????????????????##?????????????????? | | ????????????????????????????? #?????????????????? | | ????????????????????????? ? #?????????????????? | | ???????????????????????? #?????????????????? | | ???????????????????????? #?????????????????? | | ??????????????????????? #?????????????????? | | ??????????????????????? " " #???????? ???????? | | ??????????????????????? "T" !######### ??????? | | ??????????????????????? """ ??????? | | ???????????????????????? ??????? | | ????????????????????????? ???????? | | ?????????????????????????# h ???????? | | ?????????????????????????# ???????? | | ?????????????????????????#* #??????????? | | ??????????????????########s* u #??????????? | | ??????????????????# @= #??????????? | | ??????????????????# #??????????? | | ??????????????????# #??????????? | | ??????????????????# #??????????? | | ??????????????????# o #??????????? | | ??????????????????# [% ##########+#######???????? | | ??????????????????# # # #???????? | | ??????????????????# = # "T" # """ #???????? | | ??????????????????# # # """""[ #???????? | | ??????????????????# # # """"" #???????? | | ??????????????????# + # #???????? | | ??????????????????# # # #???????? | | ??????????????????# # """ # #???????? | | ???????????######## # """ # ""T"" #???????? | | ???????????# # """ # """"" #???????? | | ???????????# # ##########???????? | | ???????????# # #????????????????? | | ???????????# #########????????????????? | | ############ #????????????????????????? | | # #### ###????????????????????????? | | # ####+###########????????????????? | | # # ! #????????????????? | | # # #????????????????? | | """ # # """"""""" #????????????????? | | """ + + #????????????????? | +----------------------------------------------------+ Best States ------------- Heat Dissipation 34 Energy Generation 10 Energy Capacity 125 Matter Stores 300 Matter Capacity 300 Sight Range 16 Terrain Scan Density 10 Additional Mass Support 6 Evasion (%) 64 Offensive Hacking 20 Item Schematics ----------------- None Robot Schematics ------------------ None Fabricated ------------ Nothing Alien Tech Used ----------------- None Achievements -------------- None Challenges ------------ None Game ------ Seed KineticNetworkPod Manual? 0 Play Time 00:23:26 Cumulative 361.7 hours Start 2022.06.30 @ 11:02:16 End 2022.06.30 @ 11:26:47 Sessions 1 Manual Loads 0 Difficulty Rogue Special Mode None Game No. 436 Rogue 435 Adventurer 0 Explorer 1 Win Type - Total 9 Types 6/0/1/2/0/0/0/0/0 Lore% 73 Gallery% 84 Achievement% 62 Wizard Run 0 Options --------- ASCII 0 Keyboard 1 Movement Vi Keybinds 0 Fullscreen 1 Font 18/SmallcapsGlow Map View 76x50 Tactical HUD 1 Map Filters NONE Filters NONE Steam 1 RUN: 4196be26-48b1-462d-974b-14f4de75db6f